Cogmind - Beta 11 @@@ ROGUE MODE // 2022.04.10 @ 15:55:59 Player: zapruda Result: Destroyed by D-53 Grenadier with Mini Grenade Launcher Performance ------------- Evolutions (0) 0 Regions Visited (4) 800 Robots Destroyed (11) 55 Value Destroyed (173) 173 Prototype IDs (23) 460 Alien Tech Used (0) 0 Bonus (45) 45 TOTAL SCORE: 1533 Bonus ------- Aligned with FarCom 300 Friendly Fire -255 Cogmind --------- Core Integrity 0/250 Matter 293/300 Energy 93/100 System Corruption 3% Temperature Cool (1) Movement Core (50) Location -9/Mines Parts ------- > --- POWER (1) -------- (None) > --- PROPULSION (2) --- (None) > --- UTILITY (2) ------ Signal Interpreter > --- WEAPON (2) ------- Medium Laser > --- INVENTORY (5) ---- Light Nuclear Core Large Matter Pod (150) Visual Processing Unit Experimental Sensor Array Mining Laser Peak State ------------ > --- POWER ------------ Ion Engine > --- PROPULSION ------- Aluminum Leg Aluminum Leg > --- UTILITY ---------- Medium Storage Unit Signal Interpreter > --- WEAPON ----------- Latent Energy Streamer Improved Light Cannon > --- INVENTORY -------- Ion Engine Light Nuclear Core Large Matter Pod Visual Processing Unit Experimental Sensor Array High-powered Tractor Beam Medium Laser Mining Laser Hammer [Rating: 19] Favorites ----------- Power Ion Engine Engine Ion Engine Propulsion Aluminum Leg Leg Aluminum Leg Utility Signal Interpreter Storage Small Storage Unit Processor Signal Interpreter Weapon Assault Rifle Energy Gun Medium Laser Energy Cannon Latent Energy Streamer Ballistic Gun Assault Rifle Ballistic Cannon Improved Light Cannon Launcher Grenade Launcher Special Weapon Mining Laser Build | -11 -10 -10 -10 -9 ------- Run | Scr Mat Min Exi Min Slots Evolved . | . . . . . Power . | . . . . . Propulsion . | . . . . . Utility . | . . . . . Weapon . | . . . . . Parts Attached 11 | . 1 2 4 4 Power 1 | . . . 1 . Engine 1 | . . . 1 . Core . | . . . . . Reactor . | . . . . . Propulsion . | . . . . . Treads . | . . . . . Leg . | . . . . . Wheel . | . . . . . Hover . | . . . . . Flight . | . . . . . Utility 2 | . 1 . 1 . Device . | . . . . . Storage 1 | . . . 1 . Processor 1 | . 1 . . . Hackware . | . . . . . Protection . | . . . . . Artifact . | . . . . . Weapon 8 | . . 2 2 4 Energy Gun 2 | . . . 1 1 Energy Cannon 1 | . . . . 1 Ballistic Gun . | . . . . . Ballistic Cannon 1 | . . . . 1 Launcher 2 | . . 1 . 1 Special Weapon 2 | . . 1 1 . Impact Weapon . | . . . . . Slashing Weapon . | . . . . . Piercing Weapon . | . . . . . Special Melee Weapon . | . . . . . Unidentified Prototypes . | . . . . . Parts Lost 5 | . . . . 5 Power 1 | . . . . 1 Propulsion 2 | . . . . 2 Utility . | . . . . . Weapon 2 | . . . . 2 Highest Loss Streak 5 | . . . . 5 To Critical Strikes . | . . . . . Average Slot Usage (%) 97 | . 96 100 92 98 Engine 13 | . 14 14 14 13 Leg 28 | . 28 28 28 28 Storage 14 | . 14 14 14 14 Processor 13 | . 10 14 14 14 Energy Gun 7 | . 14 4 7 12 Ballistic Gun 9 | . 14 14 6 . Ballistic Cannon 1 | . . . . 13 Launcher 4 | . . 9 . . Special Weapon 2 | . . . 6 . Naked Turns . | . . . . . Heaviest Build 29 | 14 14 15 17 29 Greatest Support 20 | 20 20 20 20 20 Greatest Overweight (x) 1 | . . . . 1 Average Overweight (x) . | . . . . . Largest Inventory Capacity 10 | 8 8 8 10 10 Average Capacity 8 | 8 8 8 8 9 Most Carried 10 | 6 8 8 9 10 Average Carried 7 | 6 7 7 7 9 Final Capacity 10 | 8 8 8 10 5 Final Carried 9 | 6 8 8 9 5 Class Distribution -------------------- 100% | Mutant Dominant Class ---------------- Mutant | -10/Materials Mutant | -10/Mines Mutant | -10/Exiles Mutant | -9/Mines Resources | -11 -10 -10 -10 -9 ----------- Run | Scr Mat Min Exi Min Matter Collected 416 | 185 30 121 58 22 Remotely . | . . . . . Salvage Created 399 | . 63 140 . 196 Parts 22 | . 13 7 . 2 Haulers Intercepted . | . . . . . Recyclers Shooed 1 | . . . . 1 Parts Field Recycled . | . . . . . Retrieved Matter . | . . . . . Parts Self-Destructed . | . . . . . Prevented . | . . . . . Kills | -11 -10 -10 -10 -9 ------- Run | Scr Mat Min Exi Min Combat Hostiles Destroyed 17 | . 3 4 . 10 Guns 5 | . 3 2 . . AOE 12 | . . 2 . 10 Classes Destroyed 6 | . 2 2 . 2 Worker 1 | . . 1 . . Watcher 1 | . 1 . . . Swarmer 3 | . 3 . . . Grunt 3 | . . 3 . . Zionite 1 | . . . . 1 Assembled 10 | . . . . 10 Thug 1 | . . . . 1 Best Kill Streak 10 | . 3 4 . 10 Combat Bots Only 10 | . 3 2 . 10 Max Kills in Single Turn 12 | . 1 2 . 12 Gunslinging . | . . . . . Exploded 10 | . . 2 . 10 Melee . | . . . . . Uniques/NPCs Destroyed 1 | . . 1 . . YI-UF0 (-10/Mines) Combat | -11 -10 -10 -10 -9 -------- Run | Scr Mat Min Exi Min Damage Taken 862 | . 90 283 . 489 Core 254 | . 30 58 . 166 Absorbed by Shields . | . . . . . Core Remaining (%) 100 | 100 . . . . Volleys Fired 28 | . 9 11 . 8 Largest 2 | . 2 2 . 2 Hottest 100 | . 70 100 . 89 Shots Fired 48 | . 18 18 . 12 Gun 34 | . 18 9 . 7 Cannon 5 | . . . . 5 Launcher 7 | . . 7 . . Special 2 | . . 2 . . Kinetic 22 | . 9 9 . 4 Thermal 18 | . 9 2 . 7 Explosive 7 | . . 7 . . Electromagnetic 1 | . . . . 1 Robot Hit Streak 4 | . 1 2 . 4 Robot Miss Streak 4 | . 4 2 . 2 Penetration Max . | . . . . . Secondary Targets 1 | . 1 . . . Max Gunslinging Chain 1 | . 1 . . . Shots Hit Robots 18 | . 5 7 . 6 Core Hits 29 | . 5 10 . 14 Critical Kills 1 | . . 1 . . Critical Parts Destroyed . | . . . . . Critical Strikes 1 | . . 1 . . Destroy 1 | . . 1 . . Melee Attacks . | . . . . . Impact . | . . . . . Slashing . | . . . . . Piercing . | . . . . . Sneak Attacks . | . . . . . Combat Hostiles . | . . . . . Follow-up Attacks . | . . . . . Damage Inflicted 1538 | . 63 386 . 1089 Guns 151 | . 63 37 . 51 Cannons 66 | . . . . 66 Explosions 1321 | . . 349 . 972 Melee . | . . . . . Ramming . | . . . . . Kinetic 153 | . 50 37 . 66 Thermal 536 | . 13 . . 523 Explosive 349 | . . 349 . . Electromagnetic 500 | . . . . 500 Impact . | . . . . . Slashing . | . . . . . Piercing . | . . . . . Highest Corruption 3 | . . . . 3 Average Corruption 3 | . . . . 3 Corruption Purged . | . . . . . Corruption Blocked . | . . . . . Overload Shots . | . . . . . Overflow Damage 63 | . . . . 63 Projectiles . | . . . . . Explosions 63 | . . . . 63 Melee . | . . . . . Knockbacks 2 | . . . . 2 Impact . | . . . . . Kinetic 2 | . . . . 2 Secondary . | . . . . . Self-Inflicted Damage 42 | . . . . 42 Shots 1 | . . . . 1 Rammed . | . . . . . Targets Rammed 1 | . . . . 1 Kicked 1 | . . . . 1 Crushed . | . . . . . Highest Temperature 67 | . 45 40 . 67 Average Temperature 19 | . 17 14 . 23 Received Heat Transfer 120 | . . 60 . 60 Siege Activations . | . . . . . Robots Corrupted . | . . . . . Combat Hostiles . | . . . . . Parts Fried . | . . . . . Impact Corruptions . | . . . . . Robots Melted . | . . . . . Combat Hostiles . | . . . . . Parts Melted . | . . . . . Heat Transferred 785 | . 37 . . 748 Parts Sabotaged . | . . . . . Parts Stolen . | . . . . . Parts Stripped . | . . . . . Power Chain Reactions . | . . . . . Missiles Intercepted . | . . . . . Latent Energy Used 126 | . . . . 126 LE Corruption 2 | . . . . 2 Alert | -11 -10 -10 -10 -9 ------- Run | Scr Mat Min Exi Min Peak Influence 207 | . 112 207 . 51 Initial 43 | . . 43 . . Average 73 | . 63 96 . 7 Maximum Alert Level 1 | . . 1 . . Low Security (%) 76 | 100 100 63 . 100 Level 1 23 | . . 36 . . Level 2 . | . . . . . Level 3 . | . . . . . Level 4 . | . . . . . Level 5 . | . . . . . High Security . | . . . . . Max Security . | . . . . . Squads Dispatched . | . . . . . Investigation . | . . . . . Extermination . | . . . . . Reinforcement . | . . . . . Assault . | . . . . . Garrison . | . . . . . Intercept . | . . . . . Searches Triggered . | . . . . . Construction Impeded . | . . . . . Haulers Reinforced . | . . . . . Active Scanning Responses . | . . . . . Cargo Convoy Interrupts . | . . . . . Stealth | -11 -10 -10 -10 -9 --------- Run | Scr Mat Min Exi Min Distress Signals . | . . . . . Communications Jammed . | . . . . . Distress Signals . | . . . . . Times Spotted 30 | . 4 5 . 21 Peak Tracking Total 15 | . 3 2 . 15 Tactical Retreats 1 | . . . . 1 Traps | -11 -10 -10 -10 -9 ------- Run | Scr Mat Min Exi Min Traps Triggered . | . . . . . Indirectly . | . . . . . Trap Hack Attempts . | . . . . . Triggered . | . . . . . Disarmed . | . . . . . Reprogrammed . | . . . . . Reused . | . . . . . Traps Extracted . | . . . . . Installed . | . . . . . Triggered . | . . . . . Machines | -11 -10 -10 -10 -9 ---------- Run | Scr Mat Min Exi Min Machines Disabled 1 | . . . . 1 Max in Single Turn 1 | . . . . 1 Machines Sabotaged . | . . . . . Garrisons Compromised . | . . . . . Overloaded Fab Kills . | . . . . . Hacking | -11 -10 -10 -10 -9 --------- Run | Scr Mat Min Exi Min Machines Accessed 4 | . 2 1 1 . Terminals 3 | . 2 1 . . Fabricators . | . . . . . Repair Stations . | . . . . . Recycling Units . | . . . . . Scanalyzers . | . . . . . Garrison Access . | . . . . . Total Hacks 14 | . 9 4 1 . Successful 8 | . 5 2 1 . Failed 6 | . 4 2 . . Catastrophic 2 | . 2 . . . Database Lockouts . | . . . . . Manual 1 | . . . 1 . Terminals 13 | . 9 4 . . Fabricators . | . . . . . Repair Stations . | . . . . . Recycling Units . | . . . . . Scanalyzers . | . . . . . Garrison Access . | . . . . . Terminal Hacks 8 | . 5 2 1 . Level Access Points 2 | . 1 1 . . Terminal Index 1 | . 1 . . . Alert Level 1 | . 1 . . . Registered Components 1 | . 1 . . . Zone Layout 2 | . 1 1 . . EX-Prototype ID Bank 1 | . . . 1 . Fabricator Hacks . | . . . . . Repair Station Hacks . | . . . . . Recycling Unit Hacks . | . . . . . Scanalyzer . | . . . . . Garrison Access Hacks . | . . . . . Unauthorized Hacks . | . . . . . Terminals . | . . . . . Fabricators . | . . . . . Repair Stations . | . . . . . Recycling Units . | . . . . . Scanalyzers . | . . . . . Garrison Access . | . . . . . Data Cores Recovered . | . . . . . Used . | . . . . . Hacking Detections 3 | . 2 1 . . Full Trace Events 1 | . 1 . . . Feedback Events . | . . . . . Feedback Blocked . | . . . . . Robot Schematics Acquired . | . . . . . Robots Built . | . . . . . Authchips . | . . . . . Time . | . . . . . Total Robot Build Rating . | . . . . . Part Schematics Acquired . | . . . . . Parts Built . | . . . . . Authchips . | . . . . . Time . | . . . . . Total Part Build Rating . | . . . . . Parts Repaired . | . . . . . Time . | . . . . . Parts Recycled . | . . . . . Recycled Matter . | . . . . . Retrieved Matter . | . . . . . Retrieved Components . | . . . . . Parts Scanalyzed . | . . . . . Part Schematics Acquired . | . . . . . Parts Damaged . | . . . . . Bothacking | -11 -10 -10 -10 -9 ------------ Run | Scr Mat Min Exi Min Used RIF Installer . | . . . . . Robots Hacked . | . . . . . Non-combat . | . . . . . Combat . | . . . . . Robot Hacks Applied . | . . . . . Relay Couplers Released . | . . . . . Fabnet Peak Effective % . | . . . . . Robots Rewired . | . . . . . Allies Hacked . | . . . . . Hacks Repelled . | . . . . . Allies | -11 -10 -10 -10 -9 -------- Run | Scr Mat Min Exi Min Total Allies 1 | . . 1 . . Largest Group 1 | . . 1 1 1 Highest-Rated Group 31 | . . 31 31 31 Highest-Rated Ally 31 | . . 31 31 31 Total Orders . | . . . . . Ally Attacks 7 | . . . . 7 Total Damage 43 | . . . . 43 Kills 2 | . . . . 2 Allies Corrupted . | . . . . . Allies Melted . | . . . . . Intel | -11 -10 -10 -10 -9 ------- Run | Scr Mat Min Exi Min Robot Analysis Total . | . . . . . Derelict Logs Recovered . | . . . . . Drone Launches . | . . . . . Drone Recoveries . | . . . . . Exploration | -11 -10 -10 -10 -9 ------------- Run | Scr Mat Min Exi Min Turns Passed 1232 | 3 134 565 362 168 Spaces Moved 875 | 3 82 426 288 76 Core . | . . . . . Treads . | . . . . . Legs 875 | 3 82 426 288 76 Wheels . | . . . . . Hover . | . . . . . Flight . | . . . . . Fastest Speed 120 | 120 120 120 120 120 Average Speed 125 | 120 120 120 120 182 Slowest Speed 190 | 120 120 120 120 190 Overloaded Moves . | . . . . . Propulsion Burnouts . | . . . . . Robots Hopped . | . . . . . Cave-ins Triggered . | . . . . . Exploration Rate (%) 38 | 1 20 88 62 21 Regions Visited 4 Branch Regions 3 Pre-discovered Areas . | . . . . . Known Exits Taken 3 | . 1 1 1 . Unknown Exits Taken 1 | 1 . . . . Scrap Searched 2 | . . 1 . 1 Spaces Dug 16 | . . 2 . 14 Terrain Destroyed 50 | . . 36 . 14 Melee . | . . . . . Projectile 2 | . . 2 . . AOE 48 | . . 34 . 14 Terrain Rammed . | . . . . . Walls Destroyed . | . . . . . Machines Disabled . | . . . . . Actions | -11 -10 -10 -10 -9 --------- Run | Scr Mat Min Exi Min Total 960 | 2 100 459 307 92 Wait 17 | . 4 13 . . Move 871 | 2 81 425 287 76 Hop . | . . . . . Pick Up 17 | . 4 4 7 2 Fast Attach . | . . . . . Attach 3 | . 1 . . 2 Detach 1 | . . . 1 . Swap 8 | . . 2 4 2 Drop 14 | . 1 4 8 1 Fire 28 | . 9 11 . 8 Melee . | . . . . . Ram . | . . . . . Kick 1 | . . . . 1 Crush . | . . . . . Escape Stasis . | . . . . . Rewire . | . . . . . Trap . | . . . . . Miscellaneous . | . . . . . Route ------- -11/Scrapyard -10/Materials (discovered 4 exits: Mat x3 / *Min) -10/Mines (discovered 3 exits: *Mat x2 / *Exi) -10/Exiles -9/Mines History --------- Turn | Location | Event 1 | -11/Scrapyard | Discovered new exit (range 0) 4 | -11/Scrapyard | Entered Materials 96 | -10/Materials | Discovered new exit (range 9) 111 | -10/Materials | Identified exit to Mines 120 | -10/Materials | Identified exit to Materials 138 | -10/Materials | Entered Mines 188 | -10/Mines | Found a damaged Exp. Sensor Array with a note attached 191 | -10/Mines | Found Prototype Device 257 | -10/Mines | Discovered exit to Materials (range 5) 306 | -10/Mines | Build established: Mutant 427 | -10/Mines | Destroyed YI-UF0 555 | -10/Mines | Joined a pair of Derelicts in attacking an 0b10 outpost 668 | -10/Mines | Received a Mining Laser from a helpful Derelict 699 | -10/Mines | Deemed a non-threat by the Exiles lab entrance 699 | -10/Mines | Discovered new exit (range 5) 702 | -10/Mines | Identified exit to Exiles 703 | -10/Mines | Entered Exiles 703 | -10/Exiles | Accompanied by 1 ally 737 | -10/Exiles | Met 8R-AWN 755 | -10/Exiles | Met EX-HEX 796 | -10/Exiles | Met EX-BIN 810 | -10/Exiles | Aligned with FarCom system 811 | -10/Exiles | Given EX-Vault access code 858 | -10/Exiles | Opened EX-Vault 871 | -10/Exiles | Found Field Lobotomy Kit 880 | -10/Exiles | Found Latent Energy Streamer 918 | -10/Exiles | Warned to stay clear of 0b10 Research branches 922 | -10/Exiles | Exiles lab attacked by MAIN.C 1050 | -10/Exiles | Discovered new exit (range 14) 1064 | -10/Exiles | Identified exit to Mines 1065 | -10/Exiles | Left Exiles lab with Latent Energy Streamer 1065 | -10/Exiles | Entered Mines 1065 | -9/Mines | Accompanied by 1 ally 1095 | -9/Mines | Met a Derelict bent on vengeance 1189 | -9/Mines | Assembled infested the area 1213 | -9/Mines | Core integrity fell below 50% 1229 | -9/Mines | Destroyed 10 combat bots 1230 | -9/Mines | Core integrity fell below 20% 1233 | -9/Mines | Destroyed by D-53 Grenadier with Mini Grenade Launcher Last Messages --------------- 01208_ as-80666 destroyed. 01208_ as-78318 destroyed. 01208_ as-67828 destroyed. 01208_ as-46477 destroyed. 01208_ Destroyed Asb. Hover Unit. 01208_ as-47095 destroyed. 01208_ as-99684 destroyed. 01208_ as-12506 destroyed. 01211_ R-06 Scavenger collects Corrupted Mak. Power Source. 01213_ Kicked R-06 Scavenger. 01214_ Knocked back. 01229_ C-30 ARC bursts open, deploying its payload. 01229_ D-53 Grenadier unfolds itself. 01229_ as-43931 destroyed. 01229_ as-75982 destroyed. 01229_ Ion Engine destroyed. 01232_ Aluminum Leg destroyed. 01232_ Dropped Med. Storage Unit. 01232_ Imp. Light Cannon destroyed. 01233_ Aluminum Leg destroyed. Map ----- +----------------------------------------------------+ | ??????????????????????????????????????????? | | ??????????????????????????????????????????? | | ??????????????????????????????????????????? | | ??????????????????????????????????????????? | | ??????????????????????????????????????????? | | ??????????????????????????????????????????? | | ??????????????????????????????????????????? | | ??????????????????????????????????????????? | | ??????????????????????????????????????????? | | ???????????????? ????????????????????????? | | ???????????????# ????????????????????????? | | ??????????????# ????????????????????????? | | ?????????????? ????????????????????????? | | ???# ????????? ????????C???????????????? | | ???# ????????? ????????????????????????? | | ??## #######??# ????????????????????????? | | ??# #??# #????????????????????????? | | ?## #??# #????????????????????????? | | ?#" #??# ##???????????????????????? | | ?#" % ####d% #???????????????????????? | | ?#" %% % # d##??????????????????????? | | ??# %% ! ##?????????????????????? | | ??# % %% ##????????????????????? | | ??# %% # #????????????????????? | | ??##"#" ### / ###??????????????????? | | ?????### #?# !!@ t #??????????????????? | | ???????# #?# * # #??????????????????# | | ???????# #?# # #????????"????????? | | ???????# #?## # ## #????????"????????? | | ???????# #??###### %#???????? ????????? | | ???????# #########a###%#???????? ????????? | | ???????# #?# #???????# #???????? | | ???????#############?# #???????# #???????? | | ?????????????????????# #####???# #???????# | | ?????????????????????# #???# ??????? | | ?????????????????????##### #???# #???????# | | ?????????????????????????# #???# #???????# | | ?????????????????????????# ##### ######??# | | ?????????????????????????# #### | | ?????????????????????????### ## | | ???????????????????????????# ### | | ???????????????????????????# #?### ## | | ???????????????????????????# #???### ## | | ???????????????????????????# ?????## ### | | ??????????????????????????? ??????## #?## | | ??????????????????????????? ???????# #??? | | ???????????????????????????" ??????? #?## | | ???????????????????????????" ??????? ### | | ???????????????????????????" ???????#### | | ???????????????????????????? ??????????### | +----------------------------------------------------+ Best States ------------- Heat Dissipation 25 Energy Generation 10 Energy Capacity 250 Matter Stores 300 Matter Capacity 300 Sight Range 16 Terrain Scan Density 10 Evasion (%) 55 Item Schematics ----------------- None Robot Schematics ------------------ None Fabricated ------------ Nothing Alien Tech Used ----------------- None Achievements -------------- None Challenges ------------ None Game ------ Seed MatterCouplerDevice Manual? 0 Play Time 00:12:27 Cumulative 74.3 hours Start 2022.04.10 @ 15:45:25 End 2022.04.10 @ 15:55:59 Sessions 1 Manual Loads 0 Difficulty Rogue Special Mode None Game No. 110 Rogue 110 Adventurer 0 Explorer 0 Win Type - Total 0 Types 0/0/0/0/0/0/0/0/0 Lore% 29 Gallery% 51 Achievement% 35 Wizard Run 0 Options --------- ASCII 0 Keyboard 0 Movement Mouse Keybinds 0 Fullscreen 2 Font 18/Terminus Map View 76x50 Tactical HUD 1 Map Filters NONE Filters NONE Steam 1 RUN: d3049aad-93e8-4a19-83e4-73b3ea01fe43